bitfinex/quotes_ETHUSD_20240603
["timestamp","ask_amount","ask_price","bid_price","bid_amount"]
[1717433318881,0.55008962,3776.2,3775.9,1.32126577]
[1717433319203,0.2544478,3776.1,3775.9,1.32126577]
[1717433319483,0.55008962,3776.2,3775.9,1.32126577]
[1717433319684,4.22647858,3776.5,3775.9,1.32126577]
[1717433319685,0.25446261,3776.1,3775.9,1.32126577]
[1717433319886,2.40218173,3776.5,3776.3,2.64808]
[1717433319887,0.55008962,3776.5,3776.3,2.64808]
[1717433320091,0.55008962,3776.6,3776.4,1.32126577]
[1717433320400,0.55008962,3776.8,3776.4,1.32126577]
[1717433320602,0.55008962,3776.8,3776.4,1.71820035]
[1717433320603,0.78670317,3776.7,3776.4,1.71820035]
[1717433320813,0.25448704,3776.6,3776.4,1.71820035]
[1717433321006,0.55008962,3776.8,3776.4,1.71820035]
[1717433321179,0.2544783,3776.7,3776.5,2.64795]
[1717433321384,0.55008962,3776.9,3776.7,2.64781]
[1717433321592,0.55008962,3776.9,3776.8,1.32126577]
[1717433321793,0.25450008,3776.9,3776.8,1.32126577]
[1717433321970,0.55008962,3777.3,3776.9,2.64767]
[1717433322163,0.55008962,3777.3,3777.0,1.32126577]
[1717433322164,0.78681467,3777.2,3777.0,1.32126577]
[1717433322417,1.57852858,3777.6,3777.1,2.64753]
[1717433322418,0.55008962,3777.4,3777.1,2.64753]
[1717433322581,0.55008962,3777.5,3777.2,1.32126577]
[1717433322783,0.25449369,3777.4,3777.2,1.32126577]
[1717433322992,0.55008962,3777.6,3777.2,1.71814535]
[1717433323328,0.25449048,3777.5,3777.2,1.71814535]
[1717433323483,0.55008962,3777.7,3777.3,2.64737]
[1717433323683,0.7866847,3777.6,3777.4,1.32126577]
[1717433323964,0.55008962,3777.9,3777.5,2.64723]
[1717433324077,0.25446603,3777.8,3777.6,1.32126577]
[1717433324277,0.55008962,3778.0,3777.6,1.32126577]
[1717433324595,0.25441865,3777.9,3777.8,1.32126577]
[1717433324795,0.55008962,3778.2,3777.9,2.64697]
[1717433324993,1.10099463,3778.5,3778.0,1.32126577]
[1717433324994,0.55008962,3778.5,3778.0,1.32126577]
[1717433325193,0.7866521,3778.4,3778.0,1.32126577]
[1717433325398,0.55008962,3778.5,3778.0,1.32126577]
[1717433325609,0.25431471,3778.4,3778.0,2.13762935]
[1717433325842,0.55008962,3778.5,3778.1,2.64682]
[1717433326136,0.25432091,3778.4,3778.2,1.32126577]
[1717433326342,0.82365315,3778.8,3778.2,1.32126577]
[1717433326343,0.55008962,3778.7,3778.2,1.32126577]
[1717433326493,0.57489339,3778.7,3778.2,1.32126577]
[1717433326687,0.55008962,3778.7,3778.2,1.32126577]
[1717433326927,0.27755018,3778.6,3778.2,1.32126577]
[1717433327131,0.02333374,3778.6,3778.3,2.64668]
[1717433327342,0.55008962,3778.8,3778.4,1.32126577]
[1717433327543,0.02330734,3778.7,3778.4,1.32126577]
[1717433327847,0.55008962,3778.9,3778.5,2.64651]
[1717433328004,0.55008962,3779.1,3778.6,1.32126577]
[1717433328206,1.10099463,3779.5,3778.6,1.32126577]
[1717433328207,0.25412429,3779.0,3778.6,1.32126577]
[1717433328406,0.02315858,3779.1,3778.6,1.32126577]
[1717433328632,0.55008962,3779.4,3778.6,1.32126577]
[1717433328806,0.02315858,3779.1,3778.6,1.32126577]
[1717433329008,0.6874639,3779.3,3778.6,1.32126577]
[1717433329223,0.02481277,3779.1,3778.6,1.32126577]
[1717433329434,0.02488834,3779.2,3778.6,1.32126577]
[1717433329593,0.02313784,3779.0,3778.6,1.32126577]
[1717433329792,0.02318348,3779.1,3778.6,1.32126577]
[1717433330044,0.02313784,3779.0,3778.6,1.32126577]
[1717433330921,0.55008962,3779.2,3778.6,1.32126577]
[1717433331147,0.02333285,3779.1,3778.6,1.32126577]
[1717433331566,0.6874639,3779.3,3778.6,1.32126577]
[1717433331750,0.02328721,3779.0,3778.6,1.32126577]
[1717433332059,0.6874639,3779.3,3778.6,1.32126577]
[1717433332233,0.02324157,3778.9,3778.6,1.32126577]
[1717433332429,0.41570171,3779.2,3778.6,1.32126577]
[1717433332650,0.02319593,3778.8,3778.1,2.64682]
[1717433332897,2.2622,3778.9,3778.2,1.32126577]
[1717433333020,0.02364198,3778.7,3778.2,1.32126577]
[1717433333219,0.35991658,3778.8,3778.2,1.32126577]
[1717433333423,0.02359634,3778.6,3778.2,1.32126577]
[1717433333627,0.02364198,3778.7,3778.2,1.32126577]
[1717433333820,0.02364198,3778.7,3777.5,7.32]
[1717433333821,0.02355069,3778.5,3777.7,2.6471]
[1717433334023,0.02359634,3778.6,3777.8,1.32126577]
[1717433334330,0.02355069,3778.5,3777.8,1.32126577]
[1717433336629,2.64667,3778.4,3777.3,2.64737]
[1717433336872,2.64667,3778.4,3777.4,1.32126577]
[1717433337226,2.64678,3778.2,3777.4,1.32126577]
[1717433337427,2.3888,3777.9,3776.9,2.64765]
[1717433337645,2.64705,3777.8,3777.0,1.32126577]
[1717433337850,2.67023643,3777.8,3777.0,1.32126577]
[1717433338366,2.64721,3777.6,3777.0,1.32126577]
[1717433338532,2.64721,3777.6,3776.5,2.64792]
[1717433338738,2.3888,3777.9,3776.6,1.32126577]
[1717433338739,2.64733,3777.4,3776.6,1.32126577]
[1717433340835,0.25328142,3777.3,3776.6,1.32126577]
[1717433341248,2.6475,3777.2,3776.6,1.32126577]
[1717433341662,0.25328439,3777.1,3776.1,2.64822]
[1717433341867,2.55728439,3777.1,3776.2,1.32126577]
[1717433342067,0.5754874,3777.0,3776.2,1.32126577]
[1717433342564,2.64768,3776.9,3776.2,1.32126577]
[1717433342768,2.64793,3776.6,3775.7,2.64849]
[1717433343065,2.64793,3776.6,3773.6,14.45652069]
[1717433343066,2.64818,3776.2,3775.3,2.64877]
[1717433343287,2.64818,3776.2,3775.4,1.32126577]
[1717433344068,0.25338132,3776.1,3775.4,1.32126577]
[1717433344373,2.64818,3776.2,3774.4,7.73478423]
[1717433344374,2.64865,3775.5,3774.4,0.41478423]
[1717433344672,2.27808962,3775.8,3774.5,1.32126577]
[1717433344673,0.55008962,3775.7,3774.5,1.32126577]
[1717433344873,1.88355728,3775.6,3774.5,1.32126577]
[1717433345176,0.55008962,3775.4,3774.5,1.32126577]
[1717433345374,0.55,3775.3,3774.5,1.32126577]
[1717433345564,2.64895,3775.1,3774.5,1.32126577]
[1717433345930,2.64866,3775.5,3774.5,1.32126577]
[1717433346271,0.55,3775.4,3774.5,1.32126577]
[1717433346636,2.6488,3775.3,3774.5,1.32126577]
[1717433353974,0.45004387,3775.5,3774.5,1.32126577]
[1717433354181,2.64853,3775.7,3774.7,2.6492]
[1717433354341,2.64825,3776.1,3774.9,2.64901]
[1717433354670,2.64825,3776.1,3775.0,1.32126577]
[1717433356278,4.993,3776.6,3775.0,1.32126577]
[1717433356585,2.6489,3775.2,3774.1,2.6496]
[1717433356958,1.728,3775.3,3774.2,1.32126577]
[1717433356959,2.64905,3775.0,3774.2,1.32126577]
[1717433358314,2.64875,3775.4,3774.4,2.4392]
[1717433358462,2.64875,3775.4,3774.5,1.87011235]
[1717433358778,2.64875,3775.4,3774.5,1.32126577]
[1717433359096,2.64875,3775.4,3774.5,3.97056577]
[1717433361096,2.64875,3775.4,3774.4,2.4392]
[1717433361097,0.76941745,3775.9,3774.6,1.32126577]
[1717433361387,5.15157244,3776.3,3774.6,1.32126577]
[1717433361689,0.57256378,3776.2,3774.6,1.32126577]
[1717433362092,2.64858,3775.6,3774.8,2.64912]
[1717433362384,2.913438,3775.6,3774.9,1.32126577]
[1717433362690,2.64833,3776.0,3774.9,1.32126577]
[1717433362853,0.55,3775.9,3774.9,1.32126577]
[1717433363567,2.64847,3775.8,3774.9,1.32126577]
[1717433365403,1.57934756,3775.7,3774.9,1.32126577]
[1717433365588,2.15189617,3775.7,3774.9,1.32126577]
[1717433366300,2.15189617,3775.7,3775.1,2.4591]
[1717433366599,2.15189617,3776.1,3775.2,1.32126577]
[1717433366777,2.15178612,3776.1,3775.2,1.32126577]
[1717433367173,2.15178612,3776.1,3775.2,3.97008577]
[1717433367379,2.15178612,3776.0,3775.4,2.64868]
[1717433367604,1.57934756,3776.0,3775.5,1.32126577]
[1717433368401,2.15178612,3775.9,3775.5,1.32126577]
[1717433368562,1.57934756,3775.9,3775.5,1.32126577]
[1717433369177,0.57243856,3775.8,3775.5,1.32126577]
[1717433369409,0.57244595,3775.7,3775.5,1.32126577]
[1717433369630,1.57934756,3775.7,3775.5,1.32126577]
[1717433372074,0.57245074,3775.6,3775.5,1.32126577]
[1717433372274,2.1517983,3775.6,3775.5,1.32126577]
[1717433374020,2.64811,3776.3,3775.5,1.32126577]
[1717433374794,1.57988572,3775.6,3775.5,1.32126577]
[1717433374992,2.15232833,3775.6,3775.5,1.32126577]
[1717433376316,0.57244261,3775.6,3775.5,1.32126577]
[1717433376520,2.15232833,3775.6,3775.5,1.32126577]
[1717433377428,0.57244261,3775.6,3775.5,1.32126577]
[1717433379287,1.57988572,3775.7,3775.6,2.64858]
[1717433379481,2.15232226,3775.7,3775.6,3.96984577]
[1717433379921,2.15232226,3775.7,3775.6,6.66233035]
[1717433380284,0.57243654,3775.7,3775.6,3.96984577]
[1717433380489,2.15232226,3775.7,3775.6,3.96984577]
[1717433381128,0.57243654,3775.7,3775.6,3.96984577]
[1717433381682,0.57243654,3775.7,3775.6,6.37234577]
[1717433382124,1.57988572,3775.9,3775.6,6.37234577]
[1717433382284,0.57240333,3775.8,3775.7,1.32126577]
[1717433382620,0.57240158,3775.8,3775.7,1.32126577]
[1717433384095,1.37367308,3775.8,3775.7,1.32126577]
[1717433384328,1.35894192,3775.8,3775.7,1.32126577]
[1717433384526,1.90944195,3775.8,3775.7,1.32126577]
[1717433386818,1.61109164,3775.8,3775.7,1.71825035]
[1717433387020,1.06059161,3775.8,3775.7,3.98115035]
[1717433387322,0.82021261,3776.0,3775.8,2.64844]
[1717433387323,0.55050003,3776.0,3775.8,2.64844]
[1717433387527,0.82021261,3776.2,3776.0,2.6483]
[1717433387528,2.13045246,3776.2,3776.0,2.6483]
[1717433387827,0.78709732,3776.1,3776.0,2.6483]
[1717433388047,0.7871482,3776.1,3776.0,4.51777727]
[1717433388186,0.25462826,3776.1,3776.0,4.51777727]
[1717433388535,0.55050003,3776.5,3776.2,2.64809]
[1717433388826,0.7872637,3776.4,3776.3,1.32126577]
[1717433389021,0.25467384,3776.4,3776.3,1.32126577]
[1717433389210,0.55050003,3776.6,3776.3,1.32126577]
[1717433389584,1.33773348,3776.5,3776.3,1.32126577]
[1717433389787,0.25466383,3776.4,3776.3,1.32126577]
[1717433390185,0.2546266,3776.4,3776.3,1.32126577]
[1717433390406,0.55050003,3776.6,3776.3,1.32126577]
[1717433390605,0.78696268,3776.5,3776.3,1.32126577]
[1717433390810,0.55050003,3776.6,3776.3,1.32126577]
[1717433391019,0.25458661,3776.5,3776.3,1.32126577]
[1717433391226,0.55050003,3776.6,3776.4,2.64802]
[1717433391527,0.55050003,3776.7,3776.5,1.32126577]
[1717433391695,0.25457458,3776.6,3776.5,1.32126577]
[1717433393425,0.78690696,3776.6,3776.5,1.32126577]
[1717433393815,0.25457458,3776.6,3776.5,1.32126577]
[1717433394128,0.25457458,3776.6,3776.5,1.71819435]
[1717433394332,0.55050003,3776.8,3776.6,2.64788]
[1717433394502,0.55050003,3776.9,3776.7,1.32126577]
[1717433394704,0.25448584,3776.8,3776.7,1.32126577]
[1717433395097,0.78668625,3776.8,3776.7,1.32126577]
[1717433395432,0.25448584,3776.8,3776.7,1.32126577]
[1717433396232,0.25448584,3776.9,3776.7,1.32126577]
[1717433396448,0.55050003,3777.0,3776.7,1.32126577]
[1717433396599,0.2544324,3776.9,3776.7,1.32126577]
[1717433397036,0.2544324,3776.8,3776.7,1.32126577]
[1717433397222,0.78651936,3776.8,3776.7,1.32126577]
[1717433397815,0.78651936,3776.8,3776.2,2.6481]
[1717433398127,0.2544324,3776.7,3776.3,1.32126577]
[1717433398357,0.25439757,3776.6,3776.3,1.32126577]
[1717433398571,0.55050003,3776.8,3776.3,1.32126577]
[1717433398759,0.78648373,3776.7,3776.3,1.32126577]
[1717433398955,0.25439762,3776.6,3776.3,1.32126577]
[1717433399133,0.55050003,3776.8,3776.3,1.32126577]
[1717433399433,0.7865642,3776.7,3776.3,1.32126577]
[1717433399641,0.2544232,3776.6,3776.3,1.32126577]
[1717433399840,0.55050003,3776.8,3776.3,1.32126577]
[1717433400055,0.78652555,3776.7,3776.3,1.32126577]
[1717433400231,0.55050003,3776.8,3776.3,1.32126577]
[1717433400427,0.78655311,3776.7,3776.3,1.32126577]
[1717433400628,0.55050003,3776.8,3776.3,2.0225535]
[1717433400823,0.25443503,3776.7,3776.3,2.0225535]
[1717433401131,0.55050003,3776.9,3776.3,1.32126577]
[1717433401455,1.33709602,3776.8,3776.3,1.32126577]
[1717433401841,0.25443088,3776.7,3776.3,1.32126577]
[1717433402767,0.2544113,3776.6,3776.3,1.32126577]
[1717433402930,0.2544113,3776.5,3776.3,1.32126577]
[1717433403330,0.2544113,3776.4,3776.3,1.32126577]
[1717433403529,0.55050003,3776.6,3776.3,1.32126577]
[1717433403530,0.78663588,3776.5,3776.3,1.32126577]
[1717433403741,0.2544113,3776.4,3776.3,1.32126577]
[1717433404153,0.25444114,3776.4,3776.3,1.32126577]
[1717433404357,0.25444549,3776.4,3776.3,1.32126577]
[1717433404852,0.55050003,3776.6,3776.3,1.32126577]
[1717433405163,0.78672718,3776.5,3776.3,1.32126577]
[1717433405380,0.78683664,3776.4,3775.3,3.251312]
[1717433405546,0.55050003,3776.2,3775.4,3.96992577]
[1717433405866,0.55050003,3775.9,3775.4,3.96992577]
[1717433406070,0.7867859,3775.8,3775.4,3.96992577]
[1717433406233,0.55050003,3775.9,3775.4,3.96992577]
[1717433406434,0.25457937,3775.8,3775.4,4.61002835]
[1717433406635,0.55050003,3776.0,3775.4,4.61002835]
[1717433406832,0.78686316,3775.9,3775.4,4.61002835]
[1717433407039,0.25450979,3775.8,3775.4,4.61002835]
[1717433407331,0.55050003,3776.0,3775.5,0.70411284]
[1717433407561,0.78690239,3775.9,3775.6,1.32126577]
[1717433407760,0.25452278,3775.8,3775.6,1.32126577]
[1717433408072,0.55050003,3776.0,3775.7,2.64851]
[1717433408237,0.78692585,3775.9,3775.8,1.78865463]
[1717433408971,0.78692585,3775.9,3775.8,1.32126577]
[1717433410138,1.33742588,3775.9,3775.8,1.32126577]
[1717433410346,1.33742588,3775.9,3775.3,2.64873]
[1717433410347,1.60713846,3775.9,3775.3,2.64873]
[1717433410561,0.55093619,3775.7,3775.4,1.32126577]
[1717433410877,0.78692585,3775.6,3775.4,1.32126577]
[1717433411035,0.25466113,3775.5,3775.4,1.32126577]
[1717433411463,0.55093619,3775.7,3775.4,1.32126577]
[1717433411657,0.25470274,3775.6,3775.4,1.32126577]
[1717433411868,0.55093619,3775.7,3775.4,1.71826535]
[1717433412078,0.25470853,3775.6,3775.4,1.71826535]
[1717433412368,0.82021261,3775.9,3775.4,1.71826535]
[1717433412369,0.55093619,3775.7,3775.4,1.71826535]
[1717433412569,0.25472617,3775.6,3775.5,2.64865]
[1717433412775,0.25472617,3775.6,3775.5,4.40660731]
[1717433416521,0.25483816,3775.6,3775.5,3.96991577]
[1717433417338,0.78795637,3775.6,3775.5,3.96991577]
[1717433417841,0.25483816,3775.6,3775.5,3.96991577]
[1717433419448,0.78772485,3775.6,3775.5,3.96991577]
[1717433420144,1.33866104,3775.6,3775.5,3.96991577]
[1717433420553,0.25483816,3775.6,3775.5,3.96991577]
[1717433421486,0.78778982,3775.6,3775.5,3.96991577]
[1717433422066,1.33872601,3775.6,3775.5,3.96991577]
[1717433422808,1.33872601,3775.6,3775.0,2.64894]
[1717433423051,1.33872601,3775.6,3775.1,1.32126577]
[1717433423272,0.55139364,3775.4,3775.1,1.32126577]
[1717433423560,0.78778982,3775.3,3775.1,1.32126577]
[1717433423770,0.25483816,3775.2,3775.1,1.32126577]
[1717433424053,0.25465131,3775.2,3775.1,1.32126577]
[1717433424428,1.3389428,3775.2,3775.1,1.32126577]
[1717433425628,1.33880385,3775.2,3775.1,1.32126577]
[1717433426756,0.55139364,3775.2,3775.1,1.32126577]
[1717433426909,1.33869392,3775.2,3775.1,1.32126577]
[1717433428315,0.78730028,3775.2,3775.1,1.32126577]
[1717433429863,0.78730028,3775.2,3774.6,2.64926]
[1717433430033,1.33822307,3775.1,3774.7,1.32126577]
[1717433430355,0.78730028,3775.0,3774.7,1.32126577]
[1717433430510,0.55092279,3775.1,3774.7,1.32126577]
[1717433430714,0.78689304,3775.0,3774.7,1.32126577]
[1717433430927,0.25444025,3774.9,3774.7,1.32126577]
[1717433431114,0.55092279,3775.1,3774.7,1.32126577]
[1717433431342,0.25443516,3775.0,3774.7,1.32126577]
[1717433431554,0.05280638,3775.0,3774.7,1.32126577]
[1717433431720,0.2544518,3774.9,3774.7,1.32126577]
[1717433431921,0.60372917,3775.0,3774.7,1.32126577]
[1717433432122,0.05215908,3774.8,3774.7,1.32126577]
[1717433432327,0.55092279,3775.0,3774.7,1.32126577]
[1717433432597,0.05215908,3774.8,3774.7,1.32126577]
[1717433432720,0.55092279,3775.0,3774.7,1.32126577]
[1717433432928,0.05215908,3774.8,3774.7,1.32126577]
[1717433433123,1.33768008,3774.8,3774.7,1.32126577]
[1717433433367,0.83892154,3774.8,3774.7,1.32126577]
[1717433434127,0.83892154,3774.8,3774.2,5.07599]
[1717433434128,0.30656717,3774.8,3774.2,5.07599]
[1717433434326,0.05216425,3774.8,3774.3,2.73366477]
[1717433434527,0.05216425,3774.8,3774.3,1.32126577]
[1717433435065,0.25430256,3774.7,3774.3,1.32126577]
[1717433435262,0.05206795,3774.6,3774.3,1.32126577]
[1717433435472,0.55092279,3774.9,3774.3,1.32126577]
[1717433435768,0.05202972,3774.5,3774.3,1.32126577]
[1717433435973,0.55092279,3774.9,3774.3,2.45034135]
[1717433436180,0.05198487,3774.4,3774.3,1.32126577]
[1717433436650,0.55092279,3774.9,3774.3,1.32126577]
[1717433436823,0.83843324,3774.8,3774.3,1.32126577]
[1717433437021,0.25424854,3774.7,3774.3,1.32126577]
[1717433437226,0.05207456,3774.6,3774.3,1.32126577]
[1717433437426,0.55092279,3774.9,3774.3,1.32126577]
[1717433437666,0.30645123,3774.8,3774.3,1.32126577]
[1717433437872,0.05216425,3774.8,3774.3,1.32126577]
[1717433438675,0.05216425,3774.8,3773.4,3.06500442]
[1717433438676,2.66637843,3774.7,3773.4,3.06500442]
[1717433438976,0.55092279,3774.2,3773.5,1.32126577]
[1717433439268,3.80083539,3774.1,3773.5,1.32126577]
[1717433439469,0.7863231,3774.0,3773.5,1.32126577]
[1717433439771,3.01451229,3774.1,3773.5,1.32126577]
[1717433440071,0.83729838,3774.0,3773.5,1.32126577]
[1717433440234,0.05127704,3774.0,3773.5,1.32126577]
[1717433441163,0.05127704,3774.0,3773.6,5.01875]
[1717433441321,0.05127704,3774.0,3773.7,1.32126577]
[1717433441527,2.64949,3774.4,3773.7,1.32126577]
[1717433441528,3.20041279,3774.4,3773.7,1.32126577]
[1717433441753,0.05071218,3773.9,3773.7,1.32126577]
[1717433441933,0.55092279,3774.3,3773.7,1.32126577]
[1717433442138,0.05065062,3773.8,3773.7,1.32126577]
[1717433442365,3.20041279,3774.4,3773.7,1.99498071]
[1717433442665,0.25405165,3774.3,3773.7,1.99498071]
[1717433442866,0.05089023,3774.2,3773.7,1.99498071]
[1717433443574,3.20041279,3774.4,3773.7,1.99498071]
[1717433443786,0.05093958,3774.1,3773.7,1.99498071]
[1717433443946,3.20041279,3774.4,3773.7,1.32126577]
[1717433444291,3.20041279,3774.4,3772.8,3.0]
[1717433444292,2.70060472,3774.0,3772.8,5.6505]
[1717433444470,0.55092279,3773.8,3772.8,2.6505]
[1717433444785,0.55092279,3773.6,3772.8,2.6505]
[1717433445118,0.05116942,3773.5,3772.8,2.6505]
[1717433445403,0.05116942,3773.5,3772.4,5.1]
[1717433446060,0.05116942,3773.5,3772.5,3.0]
[1717433446061,0.60209221,3773.5,3772.5,3.0]
[1717433446239,0.05116942,3773.5,3772.4,5.1]
[1717433446441,0.25384755,3773.4,3772.4,5.1]
[1717433446891,0.05033732,3773.3,3772.4,5.1]
[1717433447045,0.05033732,3773.3,3772.5,1.32126577]
[1717433447375,2.65011,3773.5,3772.5,1.32126577]
[1717433447575,0.05073139,3773.2,3772.5,1.32126577]
[1717433447779,0.37088044,3773.4,3772.5,1.32126577]
[1717433447940,0.05064256,3773.1,3772.5,1.32126577]
[1717433448140,0.32010328,3773.4,3772.5,1.32126577]
[1717433448556,0.05072971,3773.3,3772.5,1.32126577]
[1717433449374,4.92178,3773.2,3772.5,1.32126577]
[1717433449913,0.05060704,3773.1,3772.5,1.32126577]
[1717433453502,2.65041,3773.0,3771.9,2.65111]
[1717433453677,2.65041,3773.0,3772.0,1.32126577]
[1717433453858,0.05039079,3772.9,3772.0,1.32126577]
[1717433454299,0.05039079,3772.9,3772.0,1.71850335]
[1717433455303,2.65057,3772.8,3772.0,1.32126577]
[1717433455507,3.20057,3772.8,3772.0,1.32126577]
[1717433455802,0.0499785,3772.7,3772.0,1.32126577]
[1717433456481,2.3145,3772.6,3772.0,1.32126577]
[1717433456680,0.496507,3772.5,3772.0,1.32126577]
[1717433456863,0.04923138,3772.4,3772.0,1.32126577]
[1717433459077,0.04923138,3772.4,3772.0,1.27126577]
[1717433464317,2.65091,3772.3,3771.5,2.65142]
[1717433464611,2.65091,3772.3,3771.6,1.32126577]
[1717433464612,0.27001414,3772.2,3771.6,1.32126577]
[1717433464811,0.89152884,3772.2,3771.6,1.32126577]
[1717433465170,0.31844124,3772.2,3771.6,1.32126577]
[1717433465366,0.0484271,3772.2,3771.6,1.32126577]
[1717433465770,0.0484271,3772.2,3771.7,2.65131]
[1717433466017,2.3145,3772.6,3771.8,1.32126577]
[1717433466228,0.0484618,3772.1,3771.9,2.65118]
[1717433466400,0.57302262,3772.5,3772.2,2.65093]
[1717433466614,4.23273845,3773.1,3772.3,1.32126577]
[1717433466916,0.04887756,3773.0,3772.3,1.32126577]
[1717433467286,0.04887756,3773.0,3772.2,2.65093]
[1717433467287,2.65048,3772.9,3772.2,2.65093]
[1717433467515,1.58233845,3772.7,3772.2,3.97219577]
[1717433467697,1.58233845,3772.7,3772.3,1.32126577]
[1717433467868,1.58233845,3772.7,3772.4,2.65083]
[1717433467869,0.04867756,3772.6,3772.4,2.65083]
[1717433468073,0.04867756,3772.6,3772.5,1.32126577]
[1717433468313,1.58233845,3772.8,3772.5,1.32126577]
[1717433468520,2.3114,3773.2,3772.5,1.32126577]
[1717433468521,0.04880071,3772.6,3772.5,1.32126577]
[1717433468710,1.58233845,3773.0,3772.0,2.65105]
[1717433468944,0.04880071,3772.6,3772.1,4.32126577]
[1717433469222,2.3608,3772.5,3771.6,2.65133]
[1717433469387,1.58233845,3772.3,3771.7,1.32126577]
[1717433469711,2.20399492,3772.2,3770.3,1.47642176]
[1717433469933,2.20399492,3772.2,3770.4,1.32126577]
[1717433469934,1.58233845,3771.7,3770.4,1.32126577]
[1717433470319,2.20352957,3771.6,3770.4,1.32126577]
[1717433470641,1.63061668,3771.6,3770.4,1.32126577]
[1717433471212,1.63061668,3771.6,3770.6,2.65203]
[1717433471410,1.63061668,3771.6,3770.7,4.32126577]
[1717433471733,2.20352957,3771.6,3770.8,2.65192]
[1717433471909,0.04827823,3771.6,3770.9,4.32126577]
[1717433472254,0.04827823,3771.6,3771.0,2.65178]
[1717433472546,0.04827823,3771.6,3771.1,1.32126577]
[1717433472917,0.04827823,3771.6,3771.2,2.65165]
[1717433473097,0.04827823,3771.6,3771.3,1.32126577]
[1717433473297,2.15540924,3771.8,3771.3,1.32126577]
[1717433473499,0.04787366,3771.7,3771.3,1.32126577]
[1717433473702,2.15539992,3771.8,3771.4,2.6515]
[1717433474044,0.04787366,3771.7,3771.5,1.32126577]
[1717433474558,0.04797003,3771.6,3771.5,1.32126577]
[1717433474916,1.58233845,3771.9,3771.5,1.32126577]
[1717433475118,0.04797003,3771.6,3771.5,1.32126577]
[1717433475359,1.58233845,3771.9,3771.5,1.32126577]
[1717433475643,0.04797003,3771.6,3771.5,1.32126577]
[1717433475842,1.58233845,3771.9,3771.5,1.32126577]
[1717433475843,0.57303037,3771.8,3771.5,1.32126577]
[1717433476044,0.04797003,3771.6,3771.5,1.32126577]
[1717433476219,1.58233845,3771.9,3771.5,1.32126577]
[1717433476413,0.04797003,3771.6,3771.5,1.32126577]
[1717433476639,1.58233845,3771.9,3771.5,1.32126577]
[1717433476819,0.04797003,3771.6,3771.5,1.32126577]
[1717433477029,1.58233845,3771.9,3771.5,1.32126577]
[1717433477198,0.04797003,3771.6,3771.5,1.32126577]
[1717433477401,1.58233845,3771.9,3771.5,1.32126577]
[1717433477642,0.04797003,3771.6,3771.5,1.32126577]
[1717433477803,1.58233845,3771.9,3771.5,1.32126577]
[1717433478004,0.04797003,3771.6,3771.5,1.32126577]
[1717433478239,1.58233845,3771.7,3771.5,1.32126577]
[1717433478412,0.15823384,3771.9,3771.5,1.32126577]
[1717433478413,2.2033843,3771.6,3771.5,1.32126577]
[1717433479038,0.0479519,3771.6,3771.5,1.32126577]
[1717433479325,0.0479519,3771.6,3771.4,2.6515]
[1717433479326,2.20278763,3771.6,3771.4,2.6515]
[1717433479542,1.62971576,3771.6,3771.4,1.32126577]
[1717433480356,0.57309839,3771.5,3771.4,1.32126577]
[1717433480722,0.62084321,3771.5,3771.4,1.32126577]
[1717433480923,0.04774482,3771.5,3771.4,1.32126577]
[1717433481332,0.78379932,3771.5,3770.3,4.61847276]
[1717433481535,1.79245955,3771.5,3770.6,2.65204]
[1717433481730,1.58244863,3771.3,3770.7,1.32126577]
[1717433481937,1.58244863,3771.0,3770.7,1.32126577]
[1717433482167,0.57311694,3770.9,3770.7,1.32126577]
[1717433482380,1.63051957,3770.9,3770.7,1.32126577]
[1717433482566,1.63051957,3770.9,3770.2,2.65232]
[1717433482567,0.57321023,3770.8,3770.2,2.65232]
[1717433482873,1.58244863,3770.8,3770.3,1.32126577]
[1717433483168,0.62097683,3770.7,3770.3,1.32126577]
[1717433483368,0.04775054,3770.7,3770.3,1.32126577]
[1717433483738,0.57322772,3770.8,3770.3,1.32126577]
[1717433483934,0.04761858,3770.6,3770.3,1.32126577]
[1717433484140,2.2786,3770.5,3768.9,2.2986]
[1717433484446,1.58114129,3770.2,3769.7,1.32126577]
[1717433484650,1.58114129,3770.1,3769.7,1.32126577]
[1717433484955,1.84362374,3770.1,3769.7,1.32126577]
[1717433485334,0.26248245,3770.1,3769.7,1.32126577]
[1717433485535,1.84362374,3770.1,3769.7,1.32126577]
[1717433485935,0.26248245,3770.1,3769.7,1.32126577]
[1717433487380,0.04566983,3770.0,3769.7,1.32126577]
[1717433487671,4.84775544,3770.5,3769.7,1.32126577]
[1717433487877,0.55,3770.4,3769.7,1.32126577]
[1717433488038,0.59586652,3770.4,3769.7,1.32126577]
[1717433488241,0.59586652,3770.4,3769.4,2.6529]
[1717433488556,0.59945447,3770.3,3769.4,2.6529]
[1717433488816,0.55,3770.2,3769.4,2.6529]
[1717433489056,0.59571541,3770.2,3769.4,2.6529]
[1717433489928,3.24813541,3770.2,3768.9,5.65322]
[1717433490269,2.31,3770.1,3769.0,1.32126577]
[1717433490405,0.55,3770.0,3769.1,2.65312]
[1717433490704,0.59556721,3770.0,3769.1,3.97438577]
[1717433490902,0.59556721,3770.0,3769.3,2.65298]
[1717433491129,0.04556721,3770.0,3769.4,1.32126577]
[1717433492918,0.04556721,3770.0,3769.5,2.65283]
[1717433493111,0.04556721,3770.0,3769.5,3.97409577]
[1717433495127,0.04556721,3770.0,3769.7,2.65272]
[1717433495328,0.04556721,3770.0,3769.9,2.65259]
[1717433495641,2.3129,3770.6,3769.9,3.97385577]
[1717433495945,2.3129,3770.6,3769.9,2.65259]
[1717433496164,0.04500182,3770.5,3769.9,2.65259]
[1717433496447,0.04500182,3770.5,3769.5,3.05022958]
[1717433496644,0.59500182,3770.5,3769.7,2.6527]
[1717433497506,2.65233,3770.3,3769.1,2.6531]
[1717433497712,2.35762777,3770.2,3769.2,1.32126577]
[1717433497923,0.55,3770.1,3769.2,1.32126577]
[1717433498309,0.04473788,3770.0,3769.2,1.32126577]
[1717433499980,2.4628,3769.9,3769.2,1.32126577]
[1717433500303,0.04461429,3769.8,3769.2,1.32126577]
[1717433502963,0.04461429,3769.8,3769.3,2.65297]
[1717433503164,0.04461429,3769.8,3769.4,1.32126577]
[1717433503466,2.4137,3770.2,3769.4,1.32126577]
[1717433503675,0.04356208,3769.7,3769.4,1.32126577]
[1717433503955,0.04351713,3769.6,3769.5,2.65284]
[1717433504263,0.04351713,3769.6,3769.5,3.97410577]
[1717433504428,2.4137,3770.2,3769.5,3.97410577]
[1717433504807,0.04381079,3770.1,3769.5,3.97410577]
[1717433507820,0.59381079,3770.1,3769.5,2.65284]
[1717433508029,0.30075108,3770.0,3769.5,2.65284]
[1717433508252,0.55,3769.9,3769.2,2.65307]
[1717433508432,0.59372953,3769.9,3769.2,3.97433577]
[1717433511421,0.04372953,3769.9,3769.2,3.97433577]
[1717433516660,1.62473714,3769.9,3769.2,3.97433577]
[1717433516962,0.04372953,3769.9,3769.2,3.97433577]
[1717433517320,0.04372953,3769.9,3769.2,4.37176935]